Workbook

Sheet Generacion
A4: GENERACION (MWh)
C7: 2005 | D7: 2006 | E7: 2007 | F7: 2008 | G7: 2009 | H7: 2010 | I7: 2011 | J7: 2012 | K7: 2013 | L7: 2014 | M7: 2015 | N7: 2016 | O7: 2017
A8: CENTRALES HIDROELECTRICAS
A9: CORANI | B9: COR1234 | C9: 250663.521 | D9: 323312.78 | E9: 314017.667 | F9: 345890.46 | G9: 326422.418 | H9: 280767.663 | I9: 317689.14 | J9: 325459.12 | K9: 373791.26 | L9: 371305.78 | M9: 377176.696 | N9: 214629.939 | O9: 284284.711
A10: SANTA ISABEL | B10: SIS12345 | C10: 376807.11 | D10: 481031.12 | E10: 469991.937 | F10: 515827.09 | G10: 490869.355 | H10: 418380.171 | I10: 477614.6 | J10: 485267.32 | K10: 555713.26 | L10: 552076.44 | M10: 560551.928 | N10: 330698.884 | O10: 431404.268
A11: ZONGO | B11: ZON1 | C11: 9930.85 | D11: 11805.46 | E11: 9633.52 | F11: 10130.63 | G11: 10722.61 | H11: 11345.116 | I11: 11062.147 | J11: 9730.236 | K11: 8366.923 | L11: 9230.836 | M11: 9970.278 | N11: 9497.004 | O11: 10212.422
A12: TIQUIMANI | B12: TIQ1 | C12: 10838.78 | D12: 15201.09 | E12: 14321.56 | F12: 11831.33 | G12: 12186.21 | H12: 8884.209 | I12: 15926.226 | J12: 12913.74 | K12: 11358.186 | L12: 10445.099 | M12: 12813.867 | N12: 6632.062 | O12: 11241.979
A13: BOTIJLACA | B13: BOT1 | C13: 7618.75 | D13: 9594.16 | E13: 10530.88 | F13: 8233.34 | G13: 7295.78 | H13: 7849.874 | I13: 8621.266 | J13: 8717.69 | K13: 8548.19 | L13: 6937.646 | M13: 8959.491 | N13: 5032.601 | O13: 8563.441
B14: BOT2 | C14: 6501.24 | D14: 8432.23 | E14: 9131.57 | F14: 7920.81 | G14: 6980.7 | H14: 6640.692 | I14: 7153.313 | J14: 7359.012 | K14: 7028.019 | L14: 5548.011 | M14: 7037.519 | N14: 3451.904 | O14: 6239.618
B15: BOT3 | C15: 19045.1 | D15: 23242.4 | E15: 22072.45 | F15: 19375.1 | G15: 22324.54 | H15: 21561.253 | I15: 20814.348 | J15: 22706.516 | K15: 22174.723 | L15: 20967.523 | M15: 23605.781 | N15: 18889.346 | O15: 20402.677
A16: CUTICUCHO | B16: CUT1 | C16: 8060 | D16: 10975.14 | E16: 8737.54 | F16: 6715.39 | G16: 8969.89 | H16: 7186.324 | I16: 9743.347 | J16: 9415.135 | K16: 6458.43 | L16: 5475.314 | M16: 14181.029 | N16: 4440.681 | O16: 9498.882
B17: CUT2 | C17: 8028.78 | D17: 10715.81 | E17: 9869.87 | F17: 5407.15 | G17: 8904.26 | H17: 6993.139 | I17: 9282.077 | J17: 8698.524 | K17: 5753.34 | L17: 4912.893 | M17: 12898.889 | N17: 5619.907 | O17: 9023.669
B18: CUT3 | C18: 7920.78 | D18: 10014.33 | E18: 9512.64 | F18: 4785.76 | G18: 8626.38 | H18: 6822.617 | I18: 9067.503 | J18: 8820.174 | K18: 6045.047 | L18: 5060.786 | M18: 13386.754 | N18: 5422.311 | O18: 8865.554
B19: CUT4 | C19: 6145.67 | D19: 7658.07 | E19: 6933.97 | F19: 4001.69 | G19: 6429.08 | H19: 5297.483 | I19: 6581.793 | J19: 6336.64 | K19: 4570.038 | L19: 3245.185 | M19: 6687.367091 | N19: 2561.439 | O19: 4531.527
B20: CUT5 | C20: 76307.79 | D20: 82935.86 | E20: 95055.06 | F20: 89647.71 | G20: 91460.58 | H20: 90321.68 | I20: 94885.142 | J20: 92591.82 | K20: 80968.934 | L20: 71783.653 | M20: 80462.043 | N20: 75993.779 | O20: 96164.228
A21: SANTA ROSA | B21: SRO1 | C21: 0 | D21: 15731.59 | E21: 39484.22 | F21: 33075.41 | G21: 35626.61 | H21: 35381.828 | I21: 40391.101 | J21: 32300.108 | K21: 36699.026 | L21: 35041.322 | M21: 38808.311 | N21: 27181.952 | O21: 38544.048
B22: SRO2 | C22: 0 | D22: 14909.62 | E22: 39728.77 | F22: 32947.73 | G22: 22743.23 | H22: 43128.714 | I22: 46044.359 | J22: 43194.46 | K22: 45291.725 | L22: 48557.09 | M22: 47305.845 | N22: 39690.658 | O22: 47225.398
A23: SAINANI | B23: SAI1 | C23: 58292.92 | D23: 53811.21 | E23: 69811.38 | F23: 65572.81 | G23: 64284.6 | H23: 66898.477 | I23: 71701.51 | J23: 68123.947 | K23: 70554.084 | L23: 15429.729 | M23: 23543.033 | N23: 53982.859 | O23: 69211.265
A24: CHURURAQUI | B24: CHU1 | C24: 59206.03 | D24: 61979.91 | E24: 69616.5 | F24: 63259.6 | G24: 65835.64 | H24: 63528.492 | I24: 66072.78 | J24: 69551.443 | K24: 71908.643 | L24: 64762.602 | M24: 71255.49 | N24: 53061.766 | O24: 68171.012
B25: CHU2 | C25: 59545.58 | D25: 61029.9 | E25: 68033.11 | F25: 61633.52 | G25: 62954.65 | H25: 62589.967 | I25: 67733.378 | J25: 64736.138 | K25: 72200.595 | L25: 62725.934 | M25: 67719.197 | N25: 53897.993 | O25: 66329.928
A26: HARCA | B26: HAR1 | C26: 77742.79 | D26: 79606.67 | E26: 83067.34 | F26: 76648.87 | G26: 76645.84 | H26: 79080.591 | I26: 83215.97 | J26: 78452.137 | K26: 86076.892 | L26: 78528.325 | M26: 81849.417 | N26: 63047.572 | O26: 79535.855
B27: HAR2 | C27: 76744.5 | D27: 78841.33 | E27: 82261.42 | F27: 74650.57 | G27: 72829.82 | H27: 77042.934 | I27: 78275.416 | J27: 73415.542 | K27: 79960.058 | L27: 77429.542 | M27: 80452.606 | N27: 61868.473 | O27: 81530.162
A28: CAHUA | B28: CAH1 | C28: 79504.53 | D28: 82057.62 | E28: 38406.98 | F28: 75324.36 | G28: 80098.12 | H28: 79039.576 | I28: 58254.009 | J28: 51281.208 | K28: 86457.891 | L28: 85493.886 | M28: 81648.602 | N28: 62691.475 | O28: 85854.238
B29: CAH2 | C29: 75479.47 | D29: 80324.78 | E29: 94275.94 | F29: 69349.11 | G29: 81575.4 | H29: 81435.837 | I29: 91507.437 | J29: 83285.34 | K29: 84764.018 | L29: 77185.931 | M29: 81079.113 | N29: 67549.633 | O29: 83617.593
A30: HUAJI | B30: HUA1 | C30: 91921.26 | D30: 88960.9 | E30: 101507.49 | F30: 92363.88 | G30: 89014.59 | H30: 95760.287 | I30: 95144.05 | J30: 95119.72 | K30: 105447.589 | L30: 99009.819 | M30: 86632.661 | N30: 79958.991 | O30: 91011.157
B31: HUA2 | C31: 91866.19 | D31: 89080.53 | E31: 99802.36 | F31: 90380.57 | G31: 85975.38 | H31: 93799.605 | I31: 98539.03 | J31: 94138.09 | K31: 99492.22 | L31: 99241.433 | M31: 93811.008 | N31: 82387.253 | O31: 99447.379
A32: MIGUILLA | B32: MIG1 | C32: 3988.4 | D32: 4594.78 | E32: 4099.4 | F32: 4237 | G32: 4148 | H32: 4114 | I32: 4554.105 | J32: 4812.643 | K32: 4552.424 | L32: 4384.409 | M32: 4376.905 | N32: 3466.108 | O32: 4191.576
B33: MIG2 | C33: 4252.7 | D33: 4871.57 | E33: 4226.9 | F33: 4452 | G33: 4241 | H33: 4195 | I33: 4563.411 | J33: 4781.625 | K33: 4698.227 | L33: 4197.793 | M33: 4145.267 | N33: 3329.45 | O33: 4038.616
A34: ANGOSTURA | B34: ANG1 | C34: 11162.4 | D34: 13662.57 | E34: 9623.7 | F34: 7352.6 | G34: 6375.1 | H34: 9271.1 | I34: 8656.585 | J34: 10232.769 | K34: 8655.151 | L34: 8364.82 | M34: 8059.284 | N34: 8299.026 | O34: 7068.212
B35: ANG2 | C35: 7167.1 | D35: 8302.98 | E35: 6129.2 | F35: 4765 | G35: 3943.9 | H35: 4843.5 | I35: 5139.198 | J35: 4981.526 | K35: 3998.696 | L35: 4087.838 | M35: 3992.585 | N35: 2863.16 | O35: 3531.556
B36: ANG3 | F36: 3129.16 | G36: 9101.75 | H36: 5760.916 | I36: 6575.517 | J36: 7386.07 | K36: 6891.603 | L36: 6808.925 | M36: 6644.116 | N36: 5656.743 | O36: 6833.087
A37: CHOQUETANGA | B37: CHO1 | C37: 12503.4 | D37: 12874.77 | E37: 12714.6 | F37: 12757 | G37: 13858.9 | H37: 12172.712 | I37: 11726.216 | J37: 12408.23 | K37: 12482.19 | L37: 11577.643 | M37: 11539.983 | N37: 9108.759 | O37: 10812.362
B38: CHO2 | C38: 13041.7 | D38: 13001.18 | E38: 11545.9 | F38: 10027.1 | G38: 9926.27 | H38: 14106.915 | I38: 13902.389 | J38: 15012.158 | K38: 15518.907 | L38: 14227.504 | M38: 14778.668 | N38: 11847.556 | O38: 13785.388
B39: CHO3 | C39: 12662.7 | D39: 13404.98 | E39: 12082.9 | F39: 13598 | G39: 13581.15 | H39: 11843.383 | I39: 11428.677 | J39: 12088.936 | K39: 12150.215 | L39: 11142.393 | M39: 11178.842 | N39: 9006.972 | O39: 10677.777
A40: CARABUCO | B40: CRB | C40: 40029.1 | D40: 40546.71 | E40: 35776.52 | F40: 42240.86 | G40: 42325.62 | H40: 43231.955 | I40: 41999.479 | J40: 43164.041 | K40: 45495.326 | L40: 43258.478 | M40: 41867.757 | N40: 36040.24 | O40: 41074.045
A41: CHOJLLA Antigua | B41: CHJ1y2 | C41: 5819.1 | D41: 249 | E41: 1285 | F41: 3684.242 | G41: 5273.879 | H41: 5956.35675 | I41: 3270.249673 | J41: 5549.074273 | K41: 3766.921545 | L41: 4567.332535 | M41: 1658.238035 | N41: 38.66845 | O41: 0
A42: CHOJLLA | B42: CHJ | C42: 109893.1 | D42: 91555.532 | E42: 131993.4 | F42: 115486.923 | G42: 119762.4868 | H42: 106123.258 | I42: 124388.162 | J42: 135330.642 | K42: 141958.0827 | L42: 127364.103 | M42: 130614.54 | N42: 50256.09 | O42: 127227.77
A43: YANACACHI | B43: YAN | C43: 179704.9 | D43: 131842.3 | E43: 215556.7 | F43: 197562.1 | G43: 197753.896 | H43: 190812.2633 | I43: 206067.001 | J43: 209706.071 | K43: 223487.3474 | L43: 70571.212 | M43: 211398.553 | N43: 155757.262 | O43: 179334.131
A44: KANATA | B44: KAN1 | C44: 16270.12 | D44: 21465.12 | E44: 17209.44 | F44: 20475.7 | G44: 15643.88 | H44: 14119.3 | I44: 19288.97 | J44: 20815.78 | K44: 16358.64 | L44: 19804.84 | M44: 17612.39 | N44: 12031.66 | O44: 10963.13
A45: KILPANI | B45: KIL123 | C45: 37321.43 | D45: 40620.41 | E45: 34983.023 | F45: 38273.64 | G45: 40036.68 | H45: 40270.455 | I45: 38528.401 | J45: 41587.582 | K45: 42148.482 | L45: 45154.621 | M45: 41357.006 | N45: 32860.883 | O45: 31306.787
A46: LANDARA | B46: LAN123 | C46: 15924.05 | D46: 18042.92 | E46: 15634.244 | F46: 16792.52 | G46: 17601.85 | H46: 14596.415 | I46: 17363.157 | J46: 17535.357 | K46: 18995.719 | L46: 22123.662 | M46: 18022.293 | N46: 14087.349 | O46: 14473.442
A47: PUNUTUMA | B47: PUN1 | C47: 13169.61 | D47: 15066.42 | E47: 14616.29 | F47: 17274.63 | G47: 17051.01 | H47: 16964.522 | I47: 17331.444 | J47: 18585.001 | K47: 16688.196 | L47: 17786.664 | M47: 18207.586 | N47: 16078.901 | O47: 15005.555
A48: QUEHATA | B48: QUE01 | E48: 949.73 | F48: 3406.07 | G48: 4897.19 | H48: 3310.4 | I48: 4002.56 | J48: 6492.9 | K48: 7388.4 | L48: 7175.84 | M48: 8301.2 | N48: 2307.6 | O48: 3547
B49: QUE02 | I49: 51.81 | J49: 346.8 | K49: 0 | L49: 0 | N49: 2352.1 | O49: 3707.2
A50: SAN JACINTO | B50: SJA01 | M50: 2118.474 | N50: 5921.3628 | O50: 9940.8974
B51: SJA02 | M51: 1880.5392 | N51: 6106.089 | O51: 10262.133
A52: MISICUNI | B52: MIS | O52: 11172.226
A53: PARQUES EÓLICOS
A54: QOLLPANA | B54: QOL Fase I | K54: 36.5285 | L54: 8157.757 | M54: 11450.126 | N54: 13207.373 | O54: 12488.579
B55: QOL Fase II | N55: 21704.071 | O55: 47894.7
A57: PLANTAS SOLARES
A58: YUNCHARA | B58: YUN | O58: 1065.63625
A60: CENTRALES TERMOELECTRICAS
A61: GUARACACHI | B61: GCH01 | C61: 26164.4 | D61: 50038.4 | E61: 19400 | F61: 18837.2 | G61: 74126.77867 | H61: 54977.58 | I61: 31424.37 | J61: 44186.28 | K61: 6585.96 | L61: 15638.4 | M61: 14091.3 | N61: 42919.2 | O61: 41459.7
B62: GCH02 | C62: 13563.6 | D62: 25189.6 | E62: 8818.4 | F62: 12728.325 | G62: 55177.35664 | H62: 44343.57 | I62: 38362.5 | J62: 31007.91 | K62: 4921.44 | L62: 14575.08 | M62: 10209.6 | N62: 28229.76 | O62: 20603.04
B63: GCH04 | C63: 230.67 | D63: 9953.876 | E63: 2160.134 | F63: 4707.258 | G63: 34079.31641 | H63: 35434.59 | I63: 65185.068 | J63: 40516.368 | K63: 17730.18 | L63: 24451.464 | M63: 13814.244 | N63: 43634.928 | O63: 24144.996
B64: GCH06 | C64: 8340.9 | D64: 20173.9 | E64: 5527.5 | F64: 8419.262 | G64: 42803.13859 | H64: 47583.18 | I64: 73021.77 | J64: 79926.345 | K64: 32721.12 | L64: 52400.7557 | M64: 49910.715 | N64: 73438.605 | O64: 47740.185
B65: GCH09 | C65: 345725 | D65: 354602.807 | E65: 335472.456 | F65: 383101.164 | G65: 280808.8042 | H65: 304167.352 | I65: 362328.336 | J65: 345670.74 | K65: 479429.598 | L65: 420127.4714 | M65: 459226.692 | N65: 240047.46 | O65: 381288.42
B66: GCH10 | C66: 350449.698 | D66: 346771.515 | E66: 308409.018 | F66: 353846.016 | G66: 338845.1555 | H66: 274064.728 | I66: 328187.052 | J66: 425317.902 | K66: 461289.348 | L66: 412122.1051 | M66: 378806.544 | N66: 386168.796 | O66: 365210.388
B67: GCH11 | E67: 265514.635 | F67: 391554.1837 | G67: 425665.0024 | H67: 386364.6331 | I67: 362853.2407 | J67: 215762.2583 | K67: 201328.7141 | L67: 301526.5525 | M67: 234237.2923 | N67: 299524.302 | O67: 149744.4793
B68: GCH12 | H68: 85.296 | I68: 1236.102 | J68: 369449.514 | K68: 616226.289 | L68: 523552.596 | M68: 544179.2599 | N68: 222713.652 | O68: 361213.692
A69: SANTA CRUZ | B69: SCZ01 | C69: 44503.5 | D69: 64639.95 | E69: 29439.65 | F69: 44315.945 | G69: 69579.292 | H69: 73485.585 | I69: 82841.6925 | J69: 69552.7875 | K69: 23800.9429 | L69: 44110.71 | M69: 44085.42 | N69: 76414.3515 | O69: 77133.69
B70: SCZ02 | C70: 88859.055 | D70: 94142.4 | E70: 52101.6 | F70: 70924 | G70: 58311.0595 | H70: 86746.32 | I70: 105667.14 | J70: 63985.62 | K70: 16188.9 | L70: 29892.71113 | M70: 35185.5 | N70: 69334.6305 | O70: 64466.46
B71: UNA01 | L71: 10615.625 | M71: 16947.5075 | N71: 10655.04975 | O71: 11162.567
A72: EASBA | B72: SBU01 | N72: 708.844 | O72: 751.153
A73: ARANJUEZ | B73: ARJ01 | C73: 2015.753 | D73: 515.043 | E73: 211.901 | F73: 1688.520924 | G73: 5851.965734 | H73: 0 | I73: 1295.25873 | J73: 6370.205515 | K73: 1574.993684 | L73: 5457.598282 | M73: 903.1293569 | N73: 2065.398746 | O73: 511.0025
B74: ARJ02 | C74: 1659.729 | D74: 508.7 | E74: 158.717 | F74: 1476.172649 | G74: 2175.537795 | H74: 7078.176123 | I74: 6630.80579 | J74: 0 | K74: 0 | L74: 1826.328269 | M74: 911.2479539 | N74: 2494.435346 | O74: 148.1945
B75: ARJ03 | C75: 1409.613 | D75: 506.461 | E75: 127.959 | F75: 1166.968429 | G75: 2252.512868 | H75: 6933.803202 | I75: 3921.550401 | J75: 7512.44944 | K75: 1769.8755 | L75: 5453.138 | M75: 742.6815 | N75: 3046.812 | O75: 740.5125
B76: ARJ08 | C76: 106435.113 | D76: 80957.548 | E76: 112662.298 | F76: 119290.0338 | G76: 103353.9883 | H76: 128803.56 | I76: 132236.64 | J76: 116890.92 | K76: 106260.78 | L76: 105427.86 | M76: 83446.76 | N76: 101154.24 | O76: 139685.16
B77: ARJ09 | C77: 1318.994 | D77: 2723.351 | E77: 11117.341 | F77: 10227.26653 | G77: 11031.29936 | H77: 8515.644332 | I77: 9389.035841 | J77: 9982.834451 | K77: 5243.73067 | L77: 10782.3011 | M77: 8423.39897 | N77: 10825.28304 | O77: 697.12325
B78: ARJ11 | C78: 745.94 | D78: 4236.968 | E78: 11709.505 | F78: 10111.72378 | G78: 10810.11669 | H78: 5377.490046 | I78: 6762.75858 | J78: 8208.257779 | K78: 9655.36312 | L78: 7515.1433 | M78: 4874.09304 | N78: 10874.30593 | O78: 657.711895
B79: ARJ12 | D79: 4424.884 | E79: 11000.348 | F79: 10451.81078 | G79: 10819.39979 | H79: 5023.210781 | I79: 6196.934516 | J79: 11548.43109 | K79: 11349.07458 | L79: 9975.93413 | M79: 7073.216074 | N79: 0 | O79: 0
B80: ARJ13 | D80: 4361.077 | E80: 11177.776 | F80: 6701.477245 | G80: 7067.324886 | H80: 2147.392315 | I80: 8851.283968 | J80: 10087.29019 | K80: 9758.3664 | L80: 4970.5612 | M80: 5371.6202 | N80: 0 | O80: 0
B81: ARJ14 | D81: 390.226 | E81: 105.832 | F81: 8409.201934 | G81: 11050.09117 | H81: 8526.900641 | I81: 10123.33607 | J81: 9538.652815 | K81: 2570.0208 | L81: 7007.9094 | M81: 0 | N81: 0 | O81: 0
B82: ARJ15 | D82: 404.85 | E82: 92.99 | F82: 2116.11598 | G82: 12065.50766 | H82: 7797.829538 | I82: 4892.938408 | J82: 11580.99053 | K82: 10493.6892 | L82: 9947.2014 | M82: 7564.2672 | N82: 8339.7396 | O82: 474.077
A83: KARACHIPAMPA | B83: KAR1 | C83: 2975.636 | D83: 42228.252 | E83: 69735.072 | F83: 78411.45497 | G83: 96307.51441 | H83: 80691.73504 | I83: 79540.578 | J83: 60267.49772 | K83: 84986.5836 | L83: 61003.53232 | M83: 79662.39755 | N83: 76545.15521 | O83: 41016.303
A84: KENKO | B84: KEN01 | C84: 13972.6 | D84: 19971.69 | E84: 33194.11 | F84: 33335.08 | G84: 32685.74 | H84: 46977.26562 | I84: 50444.30312 | J84: 50792.9475 | K84: 25340.75831 | L84: 43520.74519 | M84: 0 | N84: 1793.82 | O84: 18.81
B85: KEN02 | C85: 14438.37 | D85: 21892.86 | E85: 33380.35 | F85: 183.07 | G85: 38581.04 | H85: 47451.323 | I85: 50578.20975 | J85: 52201.957 | K85: 20555.56487 | L85: 46932.1795 | M85: 29966.794 | N85: 14728.66919 | O85: 14455.24559
A86: VALLE HERMOSO | B86: VHE12345678 | C86: 144010.67 | D86: 152904 | E86: 182593.94 | F86: 182003.13 | G86: 332553.04 | H86: 412298.62 | I86: 375505.48 | J86: 441361.193 | K86: 438893.555 | L86: 458878.518 | M86: 260568.359 | N86: 431717.9446 | O86: 498992.928
A87: CARRASCO | B87: CAR123 | C87: 532202.73 | D87: 664769.48 | E87: 648613.31 | F87: 664563.12 | G87: 622012.59 | H87: 743118.8202 | I87: 616986.2671 | J87: 772580.2 | K87: 667630.61 | L87: 815783.94 | M87: 516330.15 | N87: 440398.86 | O87: 552699.29
A88: C.EL ALTO | B88: ALT01 | J88: 57810.7089 | K88: 107684.098 | L88: 108265.7625 | M88: 62901.0717 | N88: 100635.927 | O88: 49236.5229
B89: ALT02 | K89: 103575.9891 | L89: 74350.10655 | M89: 230006.7025 | N89: 213864.514 | O89: 148687.6958
A90: BULO BULO | B90: BUL01 | C90: 262129 | D90: 318460 | E90: 118841 | F90: 322794 | G90: 303179 | H90: 320717 | I90: 327166 | J90: 106480 | K90: 287973.534 | L90: 269807.618 | M90: 253280.231 | N90: 223504.631 | O90: 237695.821
B91: BUL02 | C91: 286578 | D91: 90205 | E91: 321264 | F91: 310832 | G91: 327497 | H91: 331746 | I91: 326073 | J91: 289542 | K91: 202260.81 | L91: 173568.66 | M91: 33037.909 | N91: 15850.489 | O91: 77027.986
B92: BUL03 | K92: 917.24762 | L92: 265758.5813 | M92: 313954.442 | N92: 125500.576 | O92: 239710.459
A93: GUABIRA | B93: GBE | E93: 14200.63 | F93: 39318.21 | G93: 59670.27 | H93: 58156.17 | I93: 64040.52 | J93: 64494.2 | K93: 79491 | L93: 65694 | M93: 62146 | N93: 50538 | O93: 29748
B94: IAG | O94: 3137
A95: ENTRE RIOS | B95: ERI01 | H95: 94768 | I95: 186730 | J95: 193238 | K95: 176801 | L95: 173128 | M95: 75240 | N95: 152450 | O95: 36192
B96: ERI02 | H96: 123773.2823 | I96: 193364 | J96: 193432 | K96: 175773 | L96: 165138 | M96: 85293 | N96: 168623 | O96: 52744
B97: ERI03 | H97: 109541.1268 | I97: 170825 | J97: 196674 | K97: 195325 | L97: 173443 | M97: 74301 | N97: 182321 | O97: 60409
B98: ERI04 | H98: 77401.001 | I98: 187411 | J98: 183871 | K98: 186743 | L98: 193663 | M98: 89367 | N98: 182872 | O98: 46175
A99: DEL SUR | B99: SUR01 | L99: 84605.7 | M99: 283458 | N99: 327520.8056 | O99: 321801.0224
B100: SUR02 | L100: 129537 | M100: 256045 | N100: 313178.5303 | O100: 283832.3403
B101: SUR03 | L101: 108702.3 | M101: 285112 | N101: 329847.8392 | O101: 326287.4248
B102: SUR04 | L102: 73180 | M102: 279769 | N102: 310140.643 | O102: 335050.7928
A103: WARNES | B103: WAR01 | M103: 198822 | N103: 327476 | O103: 341340.336
B104: WAR02 | M104: 104963 | N104: 303848 | O104: 232234.96
B105: WAR03 | M105: 135385 | N105: 334360 | O105: 332215.632
B106: WAR04 | M106: 75984 | N106: 328445 | O106: 319457.856
B107: WAR05 | M107: 91678 | N107: 330964 | O107: 332882.232
A108: ENDE GEN. | B108: MOX | I108: 17193.9211 | J108: 78175.6298 | K108: 59999.3057 | L108: 92959.208 | M108: 86494.6717 | N108: 89033.7611 | O108: 89110.9052
A109: Total Generación bruta | C109: 4188810.422 | D109: 4506326.59 | E109: 4901261.593 | F109: 5372000.146 | G109: 5632658.087 | H109: 6085526.165 | I109: 6611423.366 | J109: 6940448.356 | K109: 7347749.589 | L109: 7836447.911 | M109: 8334811.495 | N109: 8759264.864 | O109: 8981304.931
A110: Unidades MDL
A111: =+A61 -> GUARACACHI | B111: GCH09 | C111: 345725 | D111: 354602.807 | E111: 335472.456 | F111: 383101.164 | G111: 280808.8042 | H111: 304167.352 | I111: 362328.336 | J111: 345670.74 | K111: 479429.598 | L111: 420127.4714 | M111: 459226.692 | N111: 240047.46 | O111: 381288.42
B112: GCH10 | C112: 350449.698 | D112: 346771.515 | E112: 308409.018 | F112: 353846.016 | G112: 338845.1555 | H112: 274064.728 | I112: 328187.052 | J112: 425317.902 | K112: 461289.348 | L112: 412122.1051 | M112: 378806.544 | N112: 386168.796 | O112: 365210.388
B113: GCH12 | C113: 0 | D113: 0 | E113: 0 | F113: 0 | G113: 0 | H113: 85.296 | I113: 1236.102 | J113: 369449.514 | K113: 616226.289 | L113: 523552.596 | M113: 544179.2599 | N113: 222713.652 | O113: 361213.692
A114: =+A42 -> CHOJLLA | B114: CHJ | C114: 109893.1 | D114: 91555.532 | E114: 131993.4 | F114: 115486.923 | G114: 119762.4868 | H114: 106123.258 | I114: 124388.162 | J114: 135330.642 | K114: 141958.0827 | L114: 127364.103 | M114: 130614.54 | N114: 50256.09 | O114: 127227.77
A115: =+A43 -> YANACACHI | B115: YAN | C115: 179704.9 | D115: 131842.3 | E115: 215556.7 | F115: 197562.1 | G115: 197753.896 | H115: 190812.2633 | I115: 206067.001 | J115: 209706.071 | K115: 223487.3474 | L115: 70571.212 | M115: 211398.553 | N115: 155757.262 | O115: 179334.131
A116: Total Unidades MDL | C116: 985772.698 | D116: 924772.154 | E116: 991431.574 | F116: 1049996.203 | G116: 937170.3424 | H116: 875252.8973 | I116: 1022206.653 | J116: 1485474.869 | K116: 1922390.665 | L116: 1553737.487 | M116: 1724225.589 | N116: 1054943.26 | O116: 1414274.401
A119: Unidades LCMR
A120: Hidroelectricas | C120: 1941081.451 | D120: 2131353.752 | E120: 2294231.121 | F120: 2280487.435 | G120: 2264298.245 | H120: 2151428.98 | I120: 2324157.274 | J120: 2322431.265 | K120: 2514863.619 | L120: 2232992.857 | M120: 2439591.151 | N120: 1715604.461 | O120: 2229863.901
A121: Eolicas | C121: 0 | D121: 0 | E121: 0 | F121: 0 | G121: 0 | H121: 0 | I121: 0 | J121: 0 | K121: 36.5285 | L121: 8157.757 | M121: 11450.126 | N121: 34911.444 | O121: 60383.279
A122: Solares | C122: 0 | D122: 0 | E122: 0 | F122: 0 | G122: 0 | H122: 0 | I122: 0 | J122: 0 | K122: 0 | L122: 0 | M122: 0 | N122: 0 | O122: 1065.63625
A123: Biomasa | C123: 0 | D123: 0 | E123: 14200.63 | F123: 39318.21 | G123: 59670.27 | H123: 58156.17 | I123: 64040.52 | J123: 64494.2 | K123: 79491 | L123: 76309.625 | M123: 79093.5075 | N123: 61901.89375 | O123: 44798.72
A124: Total Unidades LCMR | C124: 1941081.451 | D124: 2131353.752 | E124: 2308431.751 | F124: 2319805.645 | G124: 2323968.515 | H124: 2209585.15 | I124: 2388197.794 | J124: 2386925.465 | K124: 2594391.147 | L124: 2317460.239 | M124: 2530134.785 | N124: 1812417.799 | O124: 2336111.537

Sheet Proyectos
C3: Adiciones de proyectos (1999 - 2021)
C4: Unidad | D4: Fecha Puesta en Marcha | E4: Capacidad (MW) | F4: Tecnologia | G4: Proyecto MDL
C5: Palillada | D5: 2021-08-01 | E5: 118.2 | F5: Hydro | G5: NO
C6: Umapalca | D6: 2021-07-01 | E6: 85.8 | F6: Hydro | G6: NO
C7: Sehuencas | D7: 2021-06-01 | E7: 198.6 | F7: Hydro | G7: NO
C8: Juntas | D8: 2021-06-01 | E8: 91.56 | F8: Hydro | G8: NO
C9: Warnes II | D9: 2021-05-01 | E9: 24 | F9: Eolico | G9: NO
C10: La Ventolera | D10: 2021-05-01 | E10: 21 | F10: Eolico | G10: NO
C11: Planta Piloto Goetermica | D11: 2020-12-01 | E11: 5 | F11: Geotermico | G11: NO
C12: CCSUR10 | D12: 2020-02-01 | E12: 36.72 | F12: Thermal | G12: NO
C13: CCWAR20 | D13: 2020-02-01 | E13: 40.34 | F13: Thermal | G13: NO
C14: CCERI50 | D14: 2019-12-01 | E14: 136.4 | F14: Thermal | G14: NO
C15: CCSUR20 | D15: 2019-12-01 | E15: 36.72 | F15: Thermal | G15: NO
C16: CCWAR10 | D16: 2019-12-01 | E16: 40.34 | F16: Thermal | G16: NO
C17: CCERI40 | D17: 2019-10-01 | E17: 136.4 | F17: Thermal | G17: NO
C18: CCERI30 | D18: 2019-08-01 | E18: 136.4 | F18: Thermal | G18: NO
C19: CCWAR40 | D19: 2019-08-01 | E19: 135.15 | F19: Thermal | G19: NO
C20: CCWAR30 | D20: 2019-07-01 | E20: 135.15 | F20: Thermal | G20: NO
C21: AGU01 | D21: 2019-05-01 | E21: 4.57 | F21: Biomass | G21: NO
C22: CCSUR40 | D22: 2019-04-01 | E22: 132.69 | F22: Thermal | G22: NO
C23: CCSUR30 | D23: 2019-02-01 | E23: 132.69 | F23: Thermal | G23: NO
C24: San José 2 | D24: 2019-02-01 | E24: 69 | F24: Hydro | G24: NO
C25: Warnes I | D25: 2020-05-01 | E25: 14.4 | F25: Eolico | G25: NO
C26: San Julian | D26: 2020-07-01 | E26: 39.6 | F26: Eolico | G26: NO
C27: El Dorado | D27: 2020-08-01 | E27: 54 | F27: Eolico | G27: NO
C28: Yunchara | D28: 2017-10-01 | E28: 5 | F28: Solar | G28: NO
C29: IAG01 | D29: 2017-07-01 | E29: 5 | F29: Biomasa | G29: NO
C30: Misicuni | D30: 2017-09-01 | E30: 120 | F30: Hidro | G30: NO
C31: SBU01 | D31: 2016-09-01 | E31: 12 | F31: Biomasa | G31: NO
C32: QOLLPANA II | D32: 2016-08-01 | E32: 24 | F32: Eolico | G32: NO
C33: WAR01 | D33: 2015-09-01 | E33: 40 | F33: Termico | G33: NO
C34: WAR02 | D34: 2015-09-01 | E34: 40 | F34: Termico | G34: NO
C35: WAR03 | D35: 2015-09-01 | E35: 40 | F35: Termico | G35: NO
C36: WAR04 | D36: 2015-09-01 | E36: 40 | F36: Termico | G36: NO
C37: WAR05 | D37: 2015-09-01 | E37: 40 | F37: Termico | G37: NO
C38: San Jacinto | D38: 2015-08-01 | E38: 7 | F38: Hidro | G38: NO
C39: UNA01 | D39: 2015-06-01 | E39: 6 | F39: Biomasa | G39: NO
C40: SUR01 | D40: 2014-09-01 | E40: 40 | F40: Termico | G40: NO
C41: SUR02 | D41: 2014-09-01 | E41: 40 | F41: Termico | G41: NO
C42: SUR03 | D42: 2014-09-01 | E42: 40 | F42: Termico | G42: NO
C43: SUR04 | D43: 2014-09-01 | E43: 40 | F43: Termico | G43: NO
C44: QOLLPANA I | D44: 2014-01-01 | E44: 3 | F44: Eolico | G44: NO
C45: BUL03 | D45: 2013-12-01 | E45: 50 | F45: Termico | G45: NO
C46: ALT2 | D46: 2013-03-01 | E46: 32.35 | F46: Termico | G46: NO
C47: ALT 1 | D47: 2012-10-01 | E47: 17.5 | F47: Termico | G47: NO
C48: Ciclo Comb. (GCH 12) | D48: 2012-08-01 | E48: 82 | F48: Termico | G48: SI
C49: VHE 5,6,7,8 | D49: 2012-08-01 | E49: 42 | F49: Termico | G49: NO
C50: Car 03 | D50: 2012-01-01 | E50: 25 | F50: Termico | G50: NO
C51: Moxos | D51: 2011-10-01 | E51: 28 | F51: Termico | G51: NO
C52: ERI01 | D52: 2010-05-01 | E52: 26.7825 | F52: Termico | G52: NO
C53: ERI02 | D53: 2010-05-01 | E53: 26.7825 | F53: Termico | G53: NO
C54: ERI03 | D54: 2010-05-01 | E54: 26.7825 | F54: Termico | G54: NO
C55: ERI04 | D55: 2010-05-01 | E55: 26.7825 | F55: Termico | G55: NO
C56: Arj 13-14-15 | D56: 2008-08-01 | E56: 4.8 | F56: Termico | G56: NO
C57: QUEHATA | D57: 2007-10-07 | E57: 1.8 | F57: Hidro | G57: NO
C58: Guabira Energia (GE) | D58: 2007-10-01 | E58: 16.6 | F58: Biomasa | G58: NO
C59: GCH 11 | D59: 2007-05-07 | E59: 60 | F59: Termico | G59: NO
C60: Arj 9-10-11-12 | D60: 2006-08-01 | E60: 6.4 | F60: Termico | G60: NO
C61: Santa Isabel SIS5 | D61: 2004-06-04 | E61: 21.3 | F61: Hidro | G61: NO
C62: Chojlla | D62: 2002-06-01 | E62: 38.4 | F62: Hidro | G62: SI
C63: Yanacachi | D63: 2002-06-01 | E63: 80 | F63: Hidro | G63: SI
C64: Landara LAN1and3 | D64: 2001-06-23 | E64: 5 | F64: Hidro | G64: NO
C65: Kilpani KIL3 | D65: 2001-05-01 | E65: 5 | F65: Hidro | G65: NO
C66: CECBB1 & 2 | D66: 2000-05-01 | E66: 85.88 | F66: Termico | G66: NO
C67: Huaji | D67: 1999-06-01 | E67: 29 | F67: Hidro | G67: NO

Sheet Eficiencia
A1: CNDC | U1: Informe de Precios de Nodo mayo - octubre 2018
A5: ANEXO 5F
A7: CARACTERISTICAS DE UNIDADES TERMICAS PARA LA TEMPERATURA MEDIA ANUAL
A8: TURBINAS A GAS
A10: Periodo mayo - octubre 2018
U11: Página 1 de 4
A12: UNIDAD | B12: FOR | C12: TEMP | D12: POTENCIA EN BORNES | E12: CP&T (1) | F12: POTENCIA INYECTADA | G12: PODER CALORIFICO | H12: COSTO DE COMBUSTIBLE | J12: RENDIMIENTO TERMICO | M12: O&M | N12: REPRESENTACION LINEAL DE COSTO | P12: COSTO (US$/MWh) | S12: RENDIMIENTO TERMICO | V12: Eje X | Y12: Eje Y | AB12: Estimacion Lineal | AD12: (MMBTU/MWh) | AE12: Eficiencia (%) | AF12: Tipo de Combustible | AG12: Factor de Emisiones | AH12: Factor de Emisiones
J13: 50% (2) | K13: 0.75 | L13: 1 | S13: (MMBTU/MWh) | V13: % carga | Y13: RENDIMIENTO TERMICO | AE13: ηm,y
B14: % | C14: °C | D14: MW | E14: % | F14: MW | G14: BTU/PC | H14: US$/MPC | I14: US$/MMBTU | J14: BTU/KWh | K14: BTU/KWh | L14: BTU/KWh | M14: US$/MWh | N14: a | O14: b | P14: Al 93% | Q14: Al 92% | R14: Al 90% | S14: Al 93% | T14: Al 92% | U14: Al 90% | Y14: =+J14 -> BTU/KWh | Z14: =+K14 -> BTU/KWh | AA14: BTU/KWh | AB14: a | AC14: b | AD14: =1-'[16]% despacho'!G9 -> 0.9142857143 | AG14: EFCO2 (tCO2/TJ) | AH14: EFEL,m,y
A16: GCH01 | B16: 11.95 | C16: 26 | D16: 18.62 | E16: 3.5 | F16: 17.97 | G16: 925.6 | H16: 1.131 | I16: 1.221910112 | J16: 16761 | K16: 14443 | L16: 12977 | M16: 3.135 | N16: 90.31159812 | O16: 14.76117535 | P16: 20.16581916 | Q16: 20.22467191 | R16: 20.3463082 | S16: 13.9378658 | T16: 13.98603034 | U16: 14.08557636 | V16: 0.5 | W16: 0.75 | X16: 1 | Y16: =+J16 -> 16761 | Z16: =+K16 -> 14443 | AA16: 12977 | AB16: =INDEX(LINEST(Y16:AA16,V16:X16),1,2) -> 20403 | AC16: =INDEX(LINEST(Y16:AA16,V16:X16),1,1) -> -7568 | AD16: =AB16+AC16*$AD$14 -> 13483.68571 | AE16: =3412/AD16 -> 0.2530465388 | AF16: Gas Natural | AG16: 54.3 | AH16: =((AG16*3.6)/1000)/AE16 -> 0.7725061206
A17: GCH02 | B17: 2.76 | C17: 26 | D17: 17.62 | E17: 3.5 | F17: 17 | G17: 925.6 | H17: 1.131 | I17: 1.221910112 | J17: 18220 | K17: 15214 | L17: 13610 | M17: 4.14 | N17: 103.102541 | O17: 15.5220927 | P17: 22.04344254 | Q17: 22.11432677 | R17: 22.26082086 | S17: 14.65201274 | T17: 14.71002375 | U17: 14.82991317 | V17: =+V16 -> 0.5 | W17: =+W16 -> 0.75 | X17: 1 | Y17: =+J17 -> 18220 | Z17: 15214 | AA17: 13610 | AB17: =INDEX(LINEST(Y17:AA17,V17:X17),1,2) -> 22596.33333 | AC17: =INDEX(LINEST(Y17:AA17,V17:X17),1,1) -> -9220 | AD17: =AB17+AC17*$AD$14 -> 14166.61905 | AE17: =3412/AD17 -> 0.2408478684 | AF17: Gas Natural | AG17: =+AG16 -> 54.3 | AH17: =((AG17*3.6)/1000)/AE17 -> 0.8116326763
A18: GCH04 | B18: 1.39 | C18: 26 | D18: 19.95 | E18: 3.5 | F18: 19.25 | G18: 925.6 | H18: 1.131 | I18: 1.221910112 | J18: 16884 | K18: 13887 | L18: 12867 | M18: 4.14 | N18: 99.33802024 | O18: 15.33239115 | P18: 20.88200122 | Q18: 20.94153967 | R18: 21.06453312 | S18: 13.70149985 | T18: 13.75022557 | U18: 13.85088227 | V18: =+V17 -> 0.5 | W18: 0.75 | X18: 1 | Y18: =+J18 -> 16884 | Z18: 13887 | AA18: 12867 | AB18: 20571.5 | AC18: -8034 | AD18: 13226.12857 | AE18: 0.2579742047 | AF18: Gas Natural | AG18: =+AG17 -> 54.3 | AH18: 0.7577501797
A19: GCH06 | B19: 3.42 | C19: 26 | D19: 20.71 | E19: 3.5 | F19: 19.99 | G19: 925.6 | H19: 1.131 | I19: 1.221910112 | J19: 16387 | K19: 13684 | L19: 12598 | M19: 4.065 | N19: 98.08046973 | O19: 15.2055394 | P19: 20.48151948 | Q19: 20.53889827 | R19: 20.65748324 | S19: 13.43512858 | T19: 13.48208686 | U19: 13.57913571 | V19: 0.5 | W19: 0.75 | X19: 1 | Y19: 16387 | Z19: 13684 | AA19: 12598 | AB19: 19906.5 | AC19: -7578 | AD19: 12978.04286 | AE19: 0.2629055889 | AF19: Gas Natural | AG19: 54.3 | AH19: 0.7435368751
A20: GCH09 | B20: 3.06 | C20: 26 | D20: 50.84 | E20: 3.5 | F20: 49.06 | G20: 925.6 | H20: 1.131 | I20: 1.221910112 | J20: 16181 | K20: 13345 | L20: 11934 | M20: 10.624 | N20: 272.9908514 | O20: 20.34557184 | P20: 26.32827733 | Q20: 26.3932203 | R20: 26.52883008 | S20: 12.85223616 | T20: 12.90538489 | U20: 13.01636669 | V20: 0.5 | W20: 0.75 | X20: 1 | Y20: 16181 | Z20: 13345 | AA20: 11934 | AB20: 20190.5 | AC20: -8494 | AD20: 12424.55714 | AE20: 0.2746174339 | AF20: Gas Natural | AG20: 54.3 | AH20: 0.7118266208
A21: GCH10 | B21: 3.27 | C21: 26 | D21: 51.85 | E21: 3.5 | F21: 50.04 | G21: 925.6 | H21: 1.131 | I21: 1.221910112 | J21: 16181 | K21: 13345 | L21: 11934 | M21: 10.624 | N21: 278.4141551 | O21: 20.34557184 | P21: 26.327827 | Q21: 26.39279502 | R21: 26.52705841 | S21: 12.85186761 | T21: 12.90503684 | U21: 13.01491677 | V21: 0.5 | W21: 0.75 | X21: 1 | Y21: 16181 | Z21: 13345 | AA21: 11934 | AB21: 20190.5 | AC21: -8494 | AD21: 12424.55714 | AE21: 0.2746174339 | AF21: Gas Natural | AG21: 54.3 | AH21: 0.7118266208
A22: GCH11 | B22: 2.54 | C22: 26 | D22: 62.22 | E22: 3.5 | F22: 60.04 | G22: 925.6 | H22: 1.131 | I22: 1.221910112 | J22: 13827 | K22: 11267 | L22: 10242 | M22: 10.624 | N22: 278.7529515 | O22: 19.04295456 | P22: 24.03494868 | Q22: 24.0891702 | R22: 24.20122532 | S22: 10.97539708 | T22: 11.01977147 | U22: 11.11147635 | V22: 0.5 | W22: 0.75 | X22: 1 | Y22: 13827 | Z22: 11267 | AA22: 10242 | AB22: 17156.16667 | AC22: -7170 | AD22: 10600.7381 | AE22: 0.3218643805 | AF22: Gas Natural | AG22: 54.3 | AH22: 0.6073365425
A23: GCH09COM | B23: 5.79 | C23: 26 | D23: 103.96 | E23: 3.5 | F23: 100.32 | G23: 925.6 | H23: 1.131 | I23: 1.221910112 | J23: 7636 | K23: 7378 | L23: 7218 | M23: 3.008 | N23: 55.6361834 | O23: 11.60780337 | P23: 12.20411831 | Q23: 12.21064424 | R23: 12.22399767 | S23: 7.526018659 | T23: 7.53135942 | U23: 7.542287749 | V23: 0.5 | W23: 0.75 | X23: 1 | Y23: 7636 | Z23: 7378 | AA23: 7218 | AB23: 8037.666667 | AC23: -836 | AD23: 7273.32381 | AE23: 0.4691115217 | AF23: Gas Natural | AG23: 54.3 | AH23: 0.4167026197
A24: GCH10COM | B24: 5.92 | C24: 26 | D24: 102.87 | E24: 3.5 | F24: 99.27 | G24: 925.6 | H24: 1.131 | I24: 1.221910112 | J24: 7636 | K24: 7378 | L24: 7218 | M24: 3.008 | N24: 55.05284904 | O24: 11.60780337 | P24: 12.20412973 | Q24: 12.21059379 | R24: 12.22402062 | S24: 7.526028005 | T24: 7.531318137 | U24: 7.54230653 | V24: 0.5 | W24: 0.75 | X24: 1 | Y24: 7636 | Z24: 7378 | AA24: 7218 | AB24: 8037.666667 | AC24: -836 | AD24: 7273.32381 | AE24: 0.4691115217 | AF24: Gas Natural | AG24: 54.3 | AH24: 0.4167026197
A25: SCZ01 | B25: 0.6 | C25: 26 | D25: 20.76 | E25: 2.3 | F25: 20.28 | G25: 925.6 | H25: 1.131 | I25: 1.221910112 | J25: 16152 | K25: 13915 | L25: 12683 | M25: 3.135 | N25: 90.51245448 | O25: 14.65262941 | P25: 19.45180515 | Q25: 19.50324326 | R25: 19.61221596 | S25: 13.3535233 | T25: 13.39561977 | U25: 13.48480202 | V25: 0.5 | W25: 0.75 | X25: 1 | Y25: 16152 | Z25: 13915 | AA25: 12683 | AB25: 19453.5 | AC25: -6938 | AD25: 13110.18571 | AE25: 0.2602556573 | AF25: Gas Natural | AG25: 54.3 | AH25: 0.7511075919
A26: SCZ02 | B26: 2.24 | C26: 26 | D26: 21.19 | E26: 2.3 | F26: 20.7 | G26: 925.6 | H26: 1.131 | I26: 1.221910112 | J26: 16523 | K26: 14234 | L26: 12816 | M26: 3.135 | N26: 99.39766786 | O26: 14.52137794 | P26: 19.68489315 | Q26: 19.74184368 | R26: 19.85673316 | S26: 13.54428037 | T26: 13.59088816 | U26: 13.68491266 | V26: 0.5 | W26: 0.75 | X26: 1 | Y26: 16523 | Z26: 14234 | AA26: 12816 | AB26: 20084.83333 | AC26: -7414 | AD26: 13306.31905 | AE26: 0.2564195243 | AF26: Gas Natural | AG26: 54.3 | AH26: 0.7623444453
A27: GBE01 | B27: 12.65 | C27: 26 | D27: 21 | E27: 1.7 | F27: 20.64 | M27: 2.083 | N27: 0 | O27: 2.083 | P27: 2.083 | Q27: 2.083 | R27: 2.083 | S27: 0 | T27: 0 | U27: 0 | AF27: Biomasa
A28: IAG01 | B28: 3 | C28: 26 | D28: 5 | E28: 0 | F28: 5 | M28: 3.5 | N28: 0 | O28: 3.5 | P28: 3.5 | Q28: 3.5 | R28: 3.5 | S28: 0 | T28: 0 | U28: 0 | AF28: Biomasa
A29: UNA01 | B29: 5 | C29: 26 | D29: 14.57 | E29: 0 | F29: 14.57 | M29: 3.5 | N29: -9.139865171e-14 | O29: 3.5 | P29: 3.5 | Q29: 3.5 | R29: 3.5 | S29: 0 | T29: 0 | U29: 0 | AF29: Biomasa
A30: SBU01 | B30: 5.25 | C30: 26 | D30: 6 | E30: 0 | F30: 6 | M30: 3.5 | N30: 0 | O30: 3.5 | P30: 3.5 | Q30: 3.5 | R30: 3.5 | S30: 0 | T30: 0 | U30: 0 | AF30: Biomasa
A31: BUL01 | B31: 11.34 | C31: 26 | D31: 44.82 | E31: 2.6 | F31: 43.65 | G31: 925.4 | H31: 1.131 | I31: 1.222174195 | J31: 10516 | K31: 9420 | L31: 8715 | M31: 4.127 | N31: 102.6905516 | O31: 12.79681531 | P31: 15.32676238 | Q31: 15.35385095 | R31: 15.41047149 | S31: 9.163802035 | T31: 9.185966287 | U31: 9.232294004 | V31: =+V26 -> 0.5 | W31: =+W26 -> 0.75 | X31: 1 | Y31: 10516 | Z31: 9420 | AA31: 8715 | AB31: 12251.83333 | AC31: -3602 | AD31: 8958.57619 | AE31: =3412/AD31 -> 0.3808640935 | AF31: =+AF26 -> Gas Natural | AG31: =+AG26 -> 54.3 | AH31: =((AG31*3.6)/1000)/AE31 -> 0.5132539489
A32: BUL02 | B32: 13.35 | C32: 26 | D32: 44.82 | E32: 2.6 | F32: 43.65 | G32: 925.4 | H32: 1.131 | I32: 1.222174195 | J32: 10516 | K32: 9420 | L32: 8715 | M32: 4.127 | N32: 102.6905516 | O32: 12.79681531 | P32: 15.32676238 | Q32: 15.35385095 | R32: 15.41047149 | S32: 9.163802035 | T32: 9.185966287 | U32: 9.232294004 | V32: 0.5 | W32: 0.75 | X32: 1 | Y32: 10516 | Z32: 9420 | AA32: 8715 | AB32: 12251.83333 | AC32: -3602 | AD32: 8958.57619 | AE32: 0.3808640935 | AF32: =+AF31 -> Gas Natural | AG32: =+AG31 -> 54.3 | AH32: 0.5132539489
A33: BUL03 | B33: 4.74 | C33: 26 | D33: 49.02 | E33: 2.6 | F33: 47.75 | G33: 925.4 | H33: 1.131 | I33: 1.222174195 | J33: 10179 | K33: 9015 | L33: 8535 | M33: 4.127 | N33: 100.0095171 | O33: 12.76797444 | P33: 15.01993384 | Q33: 15.04453982 | R33: 15.09485944 | S33: 8.912750644 | T33: 8.932883597 | U33: 8.97405581 | V33: 0.5 | W33: 0.75 | X33: 1 | Y33: 10179 | Z33: 9015 | AA33: 8535 | AB33: 11709 | AC33: -3288 | AD33: 8702.828571 | AE33: 0.3920564414 | AF33: =+AF32 -> Gas Natural | AG33: 54.3 | AH33: 0.4986016791
A34: CAR01 | B34: 1.38 | C34: 26 | D34: 53.65 | E34: 2.5 | F34: 52.31 | G34: 929.5 | H34: 1.131 | I34: 1.216783217 | J34: 11489 | K34: 10175 | L34: 9745 | M34: 3.015 | N34: 114.1637578 | O34: 12.99386958 | P34: 15.34050386 | Q34: 15.36585707 | R34: 15.41875823 | S34: 10.12958076 | T34: 10.15041702 | U34: 10.19389326 | V34: =+V33 -> 0.5 | W34: 0.75 | X34: 1 | Y34: 11489 | Z34: 10175 | AA34: 9745 | AB34: 13085.66667 | AC34: -3488 | AD34: 9896.638095 | AE34: 0.3447635416 | AF34: Gas Natural | AG34: 54.3 | AH34: 0.566997308
A35: CAR02 | B35: 2.85 | C35: 26 | D35: 55.39 | E35: 2.5 | F35: 54.01 | G35: 929.5 | H35: 1.131 | I35: 1.216783217 | J35: 11482 | K35: 10271 | L35: 9933 | M35: 3.015 | N35: 103.9289591 | O35: 13.47154825 | P35: 15.54060975 | Q35: 15.56309502 | R35: 15.60956428 | S35: 10.2940356 | T35: 10.31251488 | U35: 10.35070513 | V35: 0.5 | W35: 0.75 | X35: 1 | Y35: 11482 | Z35: 10271 | AA35: 9933 | AB35: 12885.5 | AC35: -3098 | AD35: 10053.04286 | AE35: 0.3393997269 | AF35: Gas Natural | AG35: 54.3 | AH35: 0.5759580357
A36: CAR03 | B36: 5.07 | C36: 26 | D36: 24.32 | E36: 2.5 | F36: 23.71 | G36: 929.5 | H36: 1.131 | I36: 1.216783217 | J36: 11619 | K36: 10356 | L36: 9749 | M36: 5.25 | N36: 56.59693214 | O36: 15.07671084 | P36: 17.64346513 | Q36: 17.67171002 | R36: 17.72886324 | S36: 10.18543399 | T36: 10.20864674 | U36: 10.25561749 | V36: 0.5 | W36: 0.75 | X36: 1 | Y36: 11619 | Z36: 10356 | AA36: 9749 | AB36: 13379.66667 | AC36: -3740 | AD36: 9960.238095 | AE36: 0.3425620921 | AF36: Gas Natural | AG36: 54.3 | AH36: 0.5706410735
A37: VHE01 | B37: 8.97 | C37: 18 | D37: 18.52 | E37: 0.7 | F37: 18.39 | G37: 929.9 | H37: 1.131 | I37: 1.216259813 | J37: 14467 | K37: 12428 | L37: 11519 | M37: 2.168 | N37: 66.45117526 | O37: 12.6655348 | P37: 16.55156844 | Q37: 16.59290922 | R37: 16.68071155 | S37: 11.82606569 | T37: 11.86005578 | U37: 11.93224622 | V37: 0.5 | W37: 0.75 | X37: 1 | Y37: 14467 | Z37: 12428 | AA37: 11519 | AB37: 17226.66667 | AC37: -5896 | AD37: 11836.0381 | AE37: 0.2882721374 | AF37: Gas Natural | AG37: 54.3 | AH37: 0.67810924
A38: VHE02 | B38: 0.52 | C38: 18 | D38: 18.81 | E38: 0.7 | F38: 18.68 | G38: 929.9 | H38: 1.131 | I38: 1.216259813 | J38: 14152 | K38: 12315 | L38: 11560 | M38: 1.267 | N38: 59.08669001 | O38: 12.25076993 | P38: 15.65242163 | Q38: 15.68804102 | R38: 15.76574256 | S38: 11.82758936 | T38: 11.85687537 | U38: 11.92076102 | V38: 0.5 | W38: 0.75 | X38: 1 | Y38: 14152 | Z38: 12315 | AA38: 11560 | AB38: 16563.66667 | AC38: -5184 | AD38: 11824.00952 | AE38: 0.2885653968 | AF38: Gas Natural | AG38: 54.3 | AH38: 0.6774201002
A39: VHE03 | B39: 10.65 | C39: 18 | D39: 18.32 | E39: 0.7 | F39: 18.19 | G39: 929.9 | H39: 1.131 | I39: 1.216259813 | J39: 14815 | K39: 12533 | L39: 11435 | M39: 1.267 | N39: 75.67913829 | O39: 11.1325516 | P39: 15.60531391 | Q39: 15.65611038 | R39: 15.75558998 | S39: 11.78885774 | T39: 11.83062223 | U39: 11.91241364 | V39: 0.5 | W39: 0.75 | X39: 1 | Y39: 14815 | Z39: 12533 | AA39: 11435 | AB39: 17997.66667 | AC39: -6760 | AD39: 11817.09524 | AE39: 0.2887342389 | AF39: Gas Natural | AG39: 54.3 | AH39: 0.6770239675
A40: VHE04 | B40: 2.01 | C40: 18 | D40: 18.63 | E40: 0.7 | F40: 18.5 | G40: 929.9 | H40: 1.131 | I40: 1.216259813 | J40: 14044 | K40: 12173 | L40: 11383 | M40: 1.267 | N40: 60.16412949 | O40: 11.94947561 | P40: 15.44535763 | Q40: 15.48438334 | R40: 15.56293685 | S40: 11.65734285 | T40: 11.6894295 | U40: 11.75401563 | V40: 0.5 | W40: 0.75 | X40: 1 | Y40: 14044 | Z40: 12173 | AA40: 11383 | AB40: 16524.83333 | AC40: -5322 | AD40: 11659.00476 | AE40: 0.2926493358 | AF40: Gas Natural | AG40: 54.3 | AH40: 0.667966662
A41: VHE05 | B41: 2.66 | C41: 18 | D41: 10.58 | E41: 0.7 | F41: 10.51 | G41: 929.9 | H41: 1.131 | I41: 1.216259813 | J41: 12381 | K41: 10642 | L41: 9861 | M41: 8.129 | N41: 32.46329261 | O41: 17.12006323 | P41: 20.4428158 | Q41: 20.47717725 | R41: 20.55170093 | S41: 10.12433007 | T41: 10.15258181 | U41: 10.21385463 | V41: 0.5 | W41: 0.75 | X41: 1 | Y41: 12381 | Z41: 10642 | AA41: 9861 | AB41: 14741.33333 | AC41: -5040 | AD41: 10133.33333 | AE41: 0.3367105263 | AF41: Gas Natural | AG41: 54.3 | AH41: 0.5805580305
A42: VHE06 | B42: 3.27 | C42: 18 | D42: 10.58 | E42: 0.7 | F42: 10.51 | G42: 929.9 | H42: 1.131 | I42: 1.216259813 | J42: 12381 | K42: 10642 | L42: 9861 | M42: 8.129 | N42: 32.46329261 | O42: 17.12006323 | P42: 20.4428158 | Q42: 20.47717725 | R42: 20.55170093 | S42: 10.12433007 | T42: 10.15258181 | U42: 10.21385463 | V42: 0.5 | W42: 0.75 | X42: 1 | Y42: 12381 | Z42: 10642 | AA42: 9861 | AB42: 14741.33333 | AC42: -5040 | AD42: 10133.33333 | AE42: 0.3367105263 | AF42: Gas Natural | AG42: 54.3 | AH42: 0.5805580305
A43: VHE07 | B43: 2.59 | C43: 18 | D43: 10.58 | E43: 0.7 | F43: 10.51 | G43: 929.9 | H43: 1.131 | I43: 1.216259813 | J43: 12381 | K43: 10642 | L43: 9861 | M43: 8.129 | N43: 32.46329261 | O43: 17.12006323 | P43: 20.4428158 | Q43: 20.47717725 | R43: 20.55170093 | S43: 10.12433007 | T43: 10.15258181 | U43: 10.21385463 | V43: 0.5 | W43: 0.75 | X43: 1 | Y43: 12381 | Z43: 10642 | AA43: 9861 | AB43: 14741.33333 | AC43: -5040 | AD43: 10133.33333 | AE43: 0.3367105263 | AF43: Gas Natural | AG43: 54.3 | AH43: 0.5805580305
A44: VHE08 | B44: 2.89 | C44: 18 | D44: 10.58 | E44: 0.7 | F44: 10.51 | G44: 929.9 | H44: 1.131 | I44: 1.216259813 | J44: 12381 | K44: 10642 | L44: 9861 | M44: 8.129 | N44: 32.46329261 | O44: 17.12006323 | P44: 20.4428158 | Q44: 20.47717725 | R44: 20.55170093 | S44: 10.12433007 | T44: 10.15258181 | U44: 10.21385463 | V44: 0.5 | W44: 0.75 | X44: 1 | Y44: 12381 | Z44: 10642 | AA44: 9861 | AB44: 14741.33333 | AC44: -5040 | AD44: 10133.33333 | AE44: 0.3367105263 | AF44: Gas Natural | AG44: 54.3 | AH44: 0.5805580305
A45: ARJ08 | B45: 0.29 | C45: 15 | D45: 18.39 | E45: 2.9 | F45: 17.86 | G45: 965.4 | H45: 1.131 | I45: 1.171535115 | J45: 14347 | K45: 12590 | L45: 11586 | M45: 1.389 | N45: 61.6732068 | O45: 12.02762251 | P45: 15.74063918 | Q45: 15.78131739 | R45: 15.86540763 | S45: 12.25028511 | T45: 12.28500726 | U45: 12.35678508 | V45: 0.5 | W45: 0.75 | X45: 1 | Y45: 14347 | Z45: 12590 | AA45: 11586 | AB45: 16982.5 | AC45: -5522 | AD45: 11933.81429 | AE45: 0.2859102646 | AF45: Gas Natural | AG45: 54.3 | AH45: 0.6837110248
A46: ARJ09 | B46: 17.66 | C46: 15 | D46: 1.49 | E46: 2.9 | F46: 1.45 | G46: 965.4 | H46: 1.131 | I46: 1.171535115 | J46: 10136 | K46: 9773 | L46: 9360 | M46: 15.453 | N46: 2.112782088 | O46: 25.32413112 | P46: 26.88915488 | Q46: 26.91268908 | R46: 26.93694187 | S46: 9.7616834 | T46: 9.781771737 | U46: 9.802473458 | V46: 0.6 | W46: 0.75 | X46: 1 | Y46: 10136 | Z46: 9773 | AA46: 9360 | AB46: 11252.97959 | AC46: -1910.612245 | AD46: 9506.134111 | AE46: 0.3589261376 | AF46: Gas Natural | AG46: 54.3 | AH46: 0.5446245885
A47: ARJ11 | B47: 17.33 | C47: 15 | D47: 1.49 | E47: 2.9 | F47: 1.45 | G47: 965.4 | H47: 1.131 | I47: 1.171535115 | J47: 10318 | K47: 9920 | L47: 9476 | M47: 15.453 | N47: 2.288847262 | O47: 25.34536285 | P47: 27.04080526 | Q47: 27.06630064 | R47: 27.0925745 | S47: 9.891129267 | T47: 9.912891632 | U47: 9.935318496 | V47: 0.6 | W47: 0.75 | X47: 1 | Y47: 10318 | Z47: 9920 | AA47: 9476 | AB47: 11527.28571 | AC47: -2071.428571 | AD47: 9633.408163 | AE47: 0.3541841 | AF47: Gas Natural | AG47: 54.3 | AH47: 0.5519163622
A48: ARJ12 | B48: 21.3 | C48: 15 | D48: 1.6 | E48: 2.9 | F48: 1.55 | G48: 965.4 | H48: 1.131 | I48: 1.171535115 | J48: 10004 | K48: 9154 | L48: 9050 | M48: 15.453 | N48: 1.73689828 | O48: 25.21280599 | P48: 26.41898535 | Q48: 26.42742017 | R48: 26.45344762 | S48: 9.360355667 | T48: 9.367555469 | U48: 9.389772 | V48: =+V45 -> 0.5 | W48: 0.75 | X48: 1 | Y48: 10004 | Z48: 9154 | AA48: 9050 | AB48: 10833.66667 | AC48: -1908 | AD48: 9089.209524 | AE48: 0.3753901801 | AF48: Gas Natural | AG48: 54.3 | AH48: 0.5207381822
A49: ARJ13 | B49: 22.37 | C49: 15 | D49: 1.55 | E49: 2.9 | F49: 1.51 | G49: 965.4 | H49: 1.131 | I49: 1.171535115 | J49: 9587 | K49: 9284 | L49: 8846 | M49: 15.453 | N49: 2.138658352 | O49: 24.75210449 | P49: 26.2797176 | Q49: 26.29070762 | R49: 26.3246474 | S49: 9.241479375 | T49: 9.250860248 | U49: 9.279830592 | V49: =+V47 -> 0.6 | W49: 0.75 | X49: 1 | Y49: 9587 | Z49: 9284 | AA49: 8846 | AB49: 10682.09184 | AC49: -1842.244898 | AD49: 8997.753644 | AE49: 0.379205759 | AF49: Gas Natural | AG49: 54.3 | AH49: 0.5154985001
A50: ARJ14 | B50: 23.51 | C50: 15 | D50: 1.51 | E50: 2.9 | F50: 1.47 | G50: 965.4 | H50: 1.131 | I50: 1.171535115 | J50: 9792 | K50: 9358 | L50: 9037 | M50: 15.453 | N50: 2.011137329 | O50: 25.00280129 | P50: 26.47078474 | Q50: 26.49253265 | R50: 26.52639018 | S50: 9.404570639 | T50: 9.423134233 | U50: 9.452034375 | V50: =+V49 -> 0.6 | W50: 0.75 | X50: 1 | Y50: 9792 | Z50: 9358 | AA50: 9037 | AB50: 10825.96939 | AC50: -1825.918367 | AD50: 9156.558309 | AE50: 0.3726290911 | AF50: Gas Natural | AG50: 54.3 | AH50: 0.5245967228
A51: ARJ15 | B51: 23.67 | C51: 15 | D51: 1.6 | E51: 2.9 | F51: 1.55 | G51: 965.4 | H51: 1.131 | I51: 1.171535115 | J51: 10004 | K51: 9154 | L51: 9050 | M51: 15.453 | N51: 1.73689828 | O51: 25.21280599 | P51: 26.41898535 | Q51: 26.42742017 | R51: 26.45344762 | S51: 9.360355667 | T51: 9.367555469 | U51: 9.389772 | V51: =+V48 -> 0.5 | W51: 0.75 | X51: 1 | Y51: 10004 | Z51: 9154 | AA51: 9050 | AB51: 10833.66667 | AC51: -1908 | AD51: 9089.209524 | AE51: 0.3753901801 | AF51: Gas Natural | AG51: 54.3 | AH51: 0.5207381822
A52: KEN01 | B52: 16 | C52: 10 | D52: 9.35 | E52: 5 | F52: 8.88 | G52: 944 | H52: 1.131 | I52: 1.19809322 | J52: 15355 | K52: 12990 | L52: 12074 | M52: 5.63 | N52: 38.06960003 | O52: 16.69157537 | P52: 21.30048579 | Q52: 21.35125714 | R52: 21.45623119 | S52: 13.07952129 | T52: 13.12189809 | U52: 13.20951569 | V52: 0.5 | W52: 0.75 | X52: 1 | Y52: 15355 | Z52: 12990 | AA52: 12074 | AB52: 18394.5 | AC52: -6562 | AD52: 12394.95714 | AE52: 0.275273239 | AF52: Gas Natural | AG52: 54.3 | AH52: =((AG52*3.6)/1000)/AE52 -> 0.7101307803
A53: KEN02 | B53: 5.18 | C53: 10 | D53: 9.35 | E53: 5 | F53: 8.88 | G53: 944 | H53: 1.131 | I53: 1.19809322 | J53: 15259 | K53: 12731 | L53: 11982 | M53: 5.63 | N53: 37.53539647 | O53: 16.58087156 | P53: 21.12510842 | Q53: 21.17516733 | R53: 21.27866836 | S53: 12.93314089 | T53: 12.97492304 | U53: 13.06131117 | V53: 0.5 | W53: 0.75 | X53: 1 | Y53: 15259 | Z53: 12731 | AA53: 11982 | AB53: 18239.5 | AC53: -6554 | AD53: 12247.27143 | AE53: 0.2785926661 | AF53: Gas Natural | AG53: 54.3 | AH53: 0.7016695835
A54: ALT01 | B54: 4.67 | C54: 10 | D54: 17.5 | E54: 1.3 | F54: 17.27 | G54: 944 | H54: 1.131 | I54: 1.19809322 | J54: 11396 | K54: 10222 | L54: 9682 | M54: 7.335 | N54: 36.23761091 | O54: 17.00551007 | P54: 19.26189929 | Q54: 19.28603939 | R54: 19.33740266 | S54: 9.954900911 | T54: 9.975049675 | U54: 10.01792052 | V54: 0.5 | W54: 0.75 | X54: 1 | Y54: 11396 | Z54: 10222 | AA54: 9682 | AB54: 13004.33333 | AC54: -3428 | AD54: 9870.161905 | AE54: 0.3456883517 | AF54: Gas Natural | AG54: 54.3 | AH54: 0.5654804364
A55: ALT02 | B55: 7.51 | C55: 10 | D55: 32.35 | E55: 1.3 | F55: 31.93 | G55: 944 | H55: 1.131 | I55: 1.19809322 | J55: 9522 | K55: 8531 | L55: 8140 | M55: 6.082 | N55: 53.57650797 | O55: 14.28397126 | P55: 16.08850168 | Q55: 16.10754199 | R55: 16.14815039 | S55: 8.352022621 | T55: 8.367914802 | U55: 8.401808988 | V55: 0.5 | W55: 0.75 | X55: 1 | Y55: 9522 | Z55: 8531 | AA55: 8140 | AB55: 10804 | AC55: -2764 | AD55: 8276.914286 | AE55: 0.4122309211 | AF55: Gas Natural | AG55: 54.3 | AH55: 0.4742002358
A56: ERI01 | B56: 0.93 | C56: 26 | D56: 28.72 | E56: 2.6 | F56: 27.97 | G56: 930.7 | H56: 1.131 | I56: 1.215214355 | J56: 11812 | K56: 10653 | L56: 9767 | M56: 7.154 | N56: 75.05735089 | O56: 16.78186626 | P56: 19.66757756 | Q56: 19.69898056 | R56: 19.76388259 | S56: 10.29742408 | T56: 10.32326561 | U56: 10.3766735 | V56: 0.5 | W56: 0.75 | X56: 1 | Y56: 11812 | Z56: 10653 | AA56: 9767 | AB56: 13811.5 | AC56: -4090 | AD56: 10072.07143 | AE56: 0.338758519 | AF56: Gas Natural | AG56: 54.3 | AH56: 0.5770482189
A57: ERI02 | B57: 0.77 | C57: 26 | D57: 28.04 | E57: 2.6 | F57: 27.31 | G57: 930.7 | H57: 1.131 | I57: 1.215214355 | J57: 12203 | K57: 10504 | L57: 9728 | M57: 7.154 | N57: 86.09909545 | O57: 16.19711241 | P57: 19.58684058 | Q57: 19.62326026 | R57: 19.69992345 | S57: 10.23098561 | T57: 10.26095537 | U57: 10.32404152 | V57: 0.5 | W57: 0.75 | X57: 1 | Y57: 12203 | Z57: 10504 | AA57: 9728 | AB57: 14524.16667 | AC57: -4950 | AD57: 9998.452381 | AE57: 0.3412528129 | AF57: Gas Natural | AG57: 54.3 | AH57: 0.572830443
A58: ERI03 | B58: 1.41 | C58: 26 | D58: 29.13 | E58: 2.6 | F58: 28.37 | G58: 930.7 | H58: 1.131 | I58: 1.215214355 | J58: 11869 | K58: 10149 | L58: 9786 | M58: 7.154 | N58: 72.64519967 | O58: 16.75817688 | P58: 19.51197519 | Q58: 19.54151786 | R58: 19.60366061 | S58: 10.16937888 | T58: 10.19368954 | U58: 10.24482681 | V58: 0.5 | W58: 0.75 | X58: 1 | Y58: 11869 | Z58: 10149 | AA58: 9786 | AB58: 13725.83333 | AC58: -4166 | AD58: 9916.919048 | AE58: 0.3440584705 | AF58: Gas Natural | AG58: 54.3 | AH58: 0.5681592425
A59: ERI04 | B59: 1.54 | C59: 26 | D59: 28.44 | E59: 2.6 | F59: 27.7 | G59: 930.7 | H59: 1.131 | I59: 1.215214355 | J59: 11974 | K59: 10360 | L59: 9872 | M59: 7.154 | N59: 72.65014327 | O59: 16.84171314 | P59: 19.66198268 | Q59: 19.69297465 | R59: 19.75587853 | S59: 10.29282005 | T59: 10.31832335 | U59: 10.37008696 | V59: 0.5 | W59: 0.75 | X59: 1 | Y59: 11974 | Z59: 10360 | AA59: 9872 | AB59: 13888.33333 | AC59: -4204 | AD59: 10044.67619 | AE59: 0.3396824283 | AF59: Gas Natural | AG59: 54.3 | AH59: 0.5754786934
A60: KAR01 | B60: 12.8 | C60: 9 | D60: 11.31 | E60: 1.4 | F60: 11.15 | G60: 965.4 | H60: 1.131 | I60: 1.171535115 | J60: 15514 | K60: 14023 | L60: 13034 | M60: 5.63 | N60: 33.86545622 | O60: 18.16748295 | P60: 21.43319714 | Q60: 21.46820967 | R60: 21.54053635 | S60: 13.48930727 | T60: 13.5191933 | U60: 13.58092997 | V60: 0.5 | W60: 0.75 | X60: 1 | Y60: 15514 | Z60: 14023 | AA60: 13034 | AB60: 17910.33333 | AC60: -4960 | AD60: 13375.47619 | AE60: 0.2550937216 | AF60: Gas Natural | AG60: 54.3 | AH60: 0.7663065902
A61: SUR01 | B61: 1.5 | C61: 22 | D61: 43.83 | E61: 1.3 | F61: 43.26 | G61: 979.8 | H61: 1.131 | I61: 1.154317208 | J61: 11508 | K61: 9681 | L61: 8957 | M61: 3.398 | N61: 129.1237362 | O61: 10.88868526 | P61: 14.09832325 | Q61: 14.13300024 | R61: 14.20550355 | S61: 9.269829104 | T61: 9.299870234 | U61: 9.362680798 | V61: 0.5 | W61: 0.75 | X61: 1 | Y61: 11508 | Z61: 9681 | AA61: 8957 | AB61: 13875.16667 | AC61: -5102 | AD61: 9210.480952 | AE61: 0.3704475388 | AF61: Gas Natural | AG61: 54.3 | AH61: 0.5276860541
A62: SUR02 | B62: 0.66 | C62: 22 | D62: 43.31 | E62: 1.3 | F62: 42.75 | G62: 979.8 | H62: 1.131 | I62: 1.154317208 | J62: 11126 | K62: 9741 | L62: 9003 | M62: 3.398 | N62: 107.8999701 | O62: 11.44294452 | P62: 14.15672646 | Q62: 14.18639659 | R62: 14.2469978 | S62: 9.32042457 | T62: 9.34612819 | U62: 9.398627799 | V62: 0.5 | W62: 0.75 | X62: 1 | Y62: 11126 | Z62: 9741 | AA62: 9003 | AB62: 13141.16667 | AC62: -4246 | AD62: 9259.109524 | AE62: 0.3685019592 | AF62: Gas Natural | AG62: 54.3 | AH62: 0.5304720779
A63: SUR03 | B63: 0.6 | C63: 22 | D63: 44.16 | E63: 1.3 | F63: 43.59 | G63: 979.8 | H63: 1.131 | I63: 1.154317208 | J63: 11572 | K63: 9718 | L63: 8917 | M63: 3.398 | N63: 136.0126964 | O63: 10.7203027 | P63: 14.07532728 | Q63: 14.11214052 | R63: 14.18736098 | S63: 9.249907399 | T63: 9.281799185 | U63: 9.346963653 | V63: 0.5 | W63: 0.75 | X63: 1 | Y63: 11572 | Z63: 9718 | AA63: 8917 | AB63: 14051.5 | AC63: -5310 | AD63: 9196.642857 | AE63: 0.3710049475 | AF63: Gas Natural | AG63: 54.3 | AH63: 0.5268932432
A64: SUR04 | B64: 0.71 | C64: 22 | D64: 44.06 | E64: 1.3 | F64: 43.49 | G64: 979.8 | H64: 1.131 | I64: 1.154317208 | J64: 11478 | K64: 9743 | L64: 8934 | M64: 3.398 | N64: 130.5655382 | O64: 10.86997609 | P64: 14.09780151 | Q64: 14.13329871 | R64: 14.20583552 | S64: 9.269377113 | T64: 9.300128803 | U64: 9.362968383 | V64: 0.5 | W64: 0.75 | X64: 1 | Y64: 11478 | Z64: 9743 | AA64: 8934 | AB64: 13867.66667 | AC64: -5088 | AD64: 9215.780952 | AE64: 0.3702344942 | AF64: Gas Natural | AG64: 54.3 | AH64: 0.5279897012
A65: WAR01 | B65: 0.64 | C65: 26 | D65: 44.58 | E65: 1.3 | F65: 44 | G65: 911.2 | H65: 1.131 | I65: 1.241220369 | J65: 11555 | K65: 9691 | L65: 8883 | M65: 3.306 | N65: 148.6150306 | O65: 11.11543957 | P65: 14.74728293 | Q65: 14.78675949 | R65: 14.86834438 | S65: 9.217769239 | T65: 9.249573873 | U65: 9.315303447 | V65: 0.5 | W65: 0.75 | X65: 1 | Y65: 11555 | Z65: 9691 | AA65: 8883 | AB65: 14051 | AC65: -5344 | AD65: 9165.057143 | AE65: 0.372283549 | AF65: Gas Natural | AG65: 54.3 | AH65: 0.5250836372
A66: WAR02 | B66: 0.93 | C66: 26 | D66: 44 | E66: 1.3 | F66: 43.43 | G66: 911.2 | H66: 1.131 | I66: 1.241220369 | J66: 11640 | K66: 9739 | L66: 8966 | M66: 3.306 | N66: 146.2988463 | O66: 11.21728542 | P66: 14.83944057 | Q66: 14.87841771 | R66: 14.95990109 | S66: 9.292016838 | T66: 9.323419115 | U66: 9.389066905 | V66: =+V65 -> 0.5 | W66: 0.75 | X66: 1 | Y66: 11640 | Z66: 9739 | AA66: 8966 | AB66: 14126 | AC66: -5348 | AD66: 9236.4 | AE66: 0.3694079945 | AF66: Gas Natural | AG66: 54.3 | AH66: 0.5291710059
A67: WAR03 | B67: 0.61 | C67: 26 | D67: 44.33 | E67: 1.3 | F67: 43.75 | G67: 911.2 | H67: 1.131 | I67: 1.241220369 | J67: 11536 | K67: 9756 | L67: 8964 | M67: 3.306 | N67: 142.4492868 | O67: 11.34302104 | P67: 14.84386368 | Q67: 14.88213376 | R67: 14.96032137 | S67: 9.295580357 | T67: 9.326412981 | U67: 9.389405509 | V67: 0.5 | W67: 0.75 | X67: 1 | Y67: 11536 | Z67: 9756 | AA67: 8964 | AB67: 13943.33333 | AC67: -5144 | AD67: 9240.247619 | AE67: 0.3692541738 | AF67: Gas Natural | AG67: 54.3 | AH67: 0.5293914433
A68: WAR04 | B68: 0.68 | C68: 26 | D68: 44.55 | E68: 1.3 | F68: 43.97 | G68: 911.2 | H68: 1.131 | I68: 1.241220369 | J68: 11649 | K68: 9800 | L68: 8976 | M68: 3.306 | N68: 148.7904287 | O68: 11.23111634 | P68: 14.86991381 | Q68: 14.90949529 | R68: 14.99129902 | S68: 9.316567875 | T68: 9.348457039 | U68: 9.414362924 | V68: 0.5 | W68: 0.75 | X68: 1 | Y68: 11649 | Z68: 9800 | AA68: 8976 | AB68: 14151.16667 | AC68: -5346 | AD68: 9263.395238 | AE68: 0.3683314716 | AF68: Gas Natural | AG68: 54.3 | AH68: 0.5307176146
A69: WAR05 | B69: 0.62 | C69: 26 | D69: 44 | E69: 1.3 | F69: 43.43 | G69: 911.2 | H69: 1.131 | I69: 1.241220369 | J69: 11592 | K69: 9787 | L69: 8948 | M69: 3.306 | N69: 145.6902859 | O69: 11.2323737 | P69: 14.83946174 | Q69: 14.87827675 | R69: 14.95942117 | S69: 9.292033893 | T69: 9.323305545 | U69: 9.38868026 | V69: 0.5 | W69: 0.75 | X69: 1 | Y69: 11592 | Z69: 9787 | AA69: 8948 | AB69: 14075 | AC69: -5288 | AD69: 9240.257143 | AE69: 0.3692537932 | AF69: Gas Natural | AG69: 54.3 | AH69: 0.5293919889
A70: MOS01 | B70: 18.56 | C70: 28 | D70: 1.39 | E70: 4.9 | F70: 1.32 | G70: 37289 | H70: 0.465 | I70: 12.47016546 | J70: 10530 | K70: 9321 | L70: 8918 | M70: 21.406 | N70: 28.70014974 | O70: 116.9772733 | P70: 140.3107284 | Q70: 140.6964053 | R70: 141.0950462 | S70: 9.535136379 | T70: 9.566064352 | U70: 9.598031921 | V70: 0.5 | W70: 0.75 | X70: 1 | Y70: =+J70 -> 10530 | Z70: 9321 | AA70: 8918 | AB70: 12007.66667 | AC70: -3224 | AD70: 9060.009524 | AE70: 0.3766000456 | AF70: Diesel Oil | AG70: 72.6 | AH70: 0.6939988538
A74: 1) Consumo propio, ventas directas y pérdidas entre bornes de generador y el SMEC
A75: 2) Los valores en negrilla corresponden al 60%
